[Event "DVM U20 2019"]
[Site "Braunschweig"]
[Date "2019.12.27"]
[Round "1"]
[White "Kololli, Martin"]
[Black "Roseneck, Jonas"]
[Result "0-1"]
[ECO "B22"]
[WhiteElo "2343"]
[BlackElo "2417"]
[Annotator "NA"]
[PlyCount "87"]
[EventDate "2019.12.27"]
[EventType "team-tourn"]
[EventRounds "7"]
[EventCountry "GER"]
[SourceTitle "playchess.com"]
[Source "ChessBase"]
[SourceQuality "1"]
[WhiteTeam "Lübecker SV"]
[BlackTeam "SG Aufbau Elbe Magdeburg"]
[TimeControl "40/5400+30:1800+30"]

{[%evp 17,87,0,10,32767,32767,32767,32767,23,13,32767,0,-26,0,-34,-41,-14,4,32767,32767,32767,32767,0,0,0,0,0,32767,0,0,-11,-5,-4,10,0,0,-118,-120,-113,-76,-72,-75,-56,-64,32767,32767,32767,32767,32767,32767,32767,32767,32767,32767,32767,32767,32767,32767,32767,32767,32767,32767,32767,32767,-114,-111,-120,-104,-172,-180,-196,-183,-206]} 1. e4 {[%emt 0:00:00]} c5 {[%emt 0:00:00]} 2. c3 {[%emt 0:00:00]} Nf6 {[%emt 0:00:00]} 3. e5 {[%emt 0:00:00]} Nd5 {[%emt 0:00:00]} 4. d4 {[%emt 0:00:00]} cxd4 {[%emt 0:00:00]} 5. Nf3 {[%emt 0:00:00]} Nc6 {[%emt 0:00:00]} 6. cxd4 {[%emt 0:00:06]} d6 {[%emt 0:00:48]} 7. Bc4 {[%emt 0:00:15]} e6 {[%emt 0:01:48]} 8. O-O {[%emt 0:00:39]} Be7 {[%emt 0:00:02] unterminated} 9. exd6 {[%emt 0:01:36] B22: Sicilian: 2 c3} (9. Qe2 O-O 10. a3 Bd7 11. exd6 Bxd6 12. Nc3 Nce7 13. Ne4 Bc6 14. Ne5 Rc8 15. Rd1 Bb8 16. Ng5 Be8 17. Bd3 Nf6 18. Ngf3 Ned5 19. Bd2 a6 20. Rac1 Rxc1 21. Rxc1 Qb6 22. Nc4 Qd8 23. Nce5 Qb6 24. Nc4 Qd8 {½-½ (24) Vachier Lagrave,M (2789)-Caruana,F (2816) Leuven 2018}) 9... Bxd6 {[%emt 0:00:21]} 10. Nc3 {[%emt 0:05:37]} O-O {[%emt 0:00:23]} 11. Re1 {[%emt 0:01:13]} h6 {[%emt 0:00:05] unterminated} 12. Bb3 {[%emt 0:02:57]} Nf6 {[%emt 0:01:17] unterminated} 13. a3 {[%emt 0:05:52] unterminated} b6 {[%emt 0:08:19] unterminated} 14. Qd3 {[%emt 0:10:46] unterminated} Bb7 {[%emt 0:09:51]} 15. Bc2 {[%emt 0:01:09] unterminated} Ne7 {[%emt 0:02:32] unterminated} 16. Ne5 $146 {[%emt 0:03:47] unterminated} ({Predecessor:} 16. Bd2 Rc8 17. Rad1 Nf5 18. Ne5 Re8 {1-0 (29) Meskovs,N (2372)-Gundavaa,B (2516) Kazan 2013}) 16... Bxe5 {[%emt 0:25:30]} 17. dxe5 {[%emt 0:01:56]} Qxd3 {[%emt 0:00:09]} 18. Bxd3 {[%emt 0:00:05]} Nd7 {[%emt 0:00:28] unterminated} 19. Bf4 {[%emt 0:05:28] unterminated} Nc5 {[%emt 0:10:06]} 20. Bc2 {[%emt 0:00:51] unterminated} Rad8 {[%emt 0:04:51]} 21. Rad1 {[%emt 0:01:06] unterminated} Ba6 {[%emt 0:00:29] unterminated} 22. Rxd8 {[%emt 0:06:55]} Rxd8 {[%emt 0:01:09]} 23. b4 {[%emt 0:00:53] unterminated} Nd3 {[%emt 0:07:56]} 24. Rd1 {[%emt 0:00:36] unterminated} Bc4 {[%emt 0:02:39]} 25. f3 {[%emt 0:03:02] unterminated} Kf8 {[%emt 0:06:18] unterminated} 26. Rd2 {[%emt 0:16:56]} (26. Ne4 $11 Rd5 27. Bxd3 Rxd3 28. Rxd3 Bxd3 29. Nd6) 26... Nd5 {[%emt 0:01:22] unterminated} 27. Ne2 {[%emt 0:03:01] unterminated} N3xb4 {[%emt 0:06:43] unterminated} ({Of course not} 27... N3xf4 $6 28. Nxf4 Ke7 29. Nh5 $11) 28. axb4 {[%emt 0:03:15]} Bxe2 $1 {[%emt 0:00:04]} 29. Bb3 {[%emt 0:03:15] unterminated} Bb5 {[%emt 0:01:55]} 30. Be3 {[%emt 0:04:52]} Ke7 {[%emt 0:00:25]} 31. Bxd5 {[%emt 0:00:24]} exd5 {[%emt 0:00:11]} 32. Rd4 {[%emt 0:02:47]} Bc4 {[%emt 0:03:24]} 33. Rg4 {[%emt 0:01:04]} Kf8 {[%emt 0:00:04]} 34. Bd4 {[%emt 0:01:01]} Re8 {[%emt 0:01:28]} 35. f4 {[%emt 0:00:24]} g6 {[%emt 0:02:42]} 36. Rh4 {[%emt 0:03:20]} h5 {[%emt 0:01:19]} 37. f5 {[%emt 0:01:31]} Bd3 {[%emt 0:00:59] unterminated} 38. fxg6 {[%emt 0:02:24] unterminated} Bxg6 {[%emt 0:02:15] unterminated} 39. Rh3 {[%emt 0:05:26] unterminated} Rc8 {[%emt 0:00:57] unterminated} 40. Ra3 {[%emt 0:01:33]} Rc4 {[%emt 0:00:29]} 41. Be3 {[%emt 0:31:08] unterminated} d4 {[%emt 0:07:28] unterminated} 42. Bh6+ {[%emt 0:00:00] unterminated} (42. Bg5 $17) 42... Ke7 {[%emt 0:00:21]} 43. Rxa7+ Ke6 {unterminated} 44. b5 $19 {[%emt 0:00:00] normal} 0-1

[Event "DVM U20 2019"]
[Site "Braunschweig"]
[Date "2019.12.27"]
[Round "1"]
[White "Röhr, Tobias"]
[Black "Dörp, Max Marian"]
[Result "1-0"]
[ECO "D43"]
[WhiteElo "2103"]
[BlackElo "1767"]
[Annotator "ChessBase"]
[PlyCount "71"]
[EventDate "2019.12.27"]
[EventType "team-tourn"]
[EventRounds "7"]
[EventCountry "GER"]
[SourceTitle "playchess.com"]
[Source "ChessBase"]
[SourceQuality "1"]
[WhiteTeam "SG Aufbau Elbe Magdeburg"]
[BlackTeam "Lübecker SV"]
[TimeControl "40/5400+30:1800+30"]

1. d4 {[%emt 0:00:00]} d5 {[%emt 0:00:00]} 2. c4 {[%emt 0:00:00]} c6 {[%emt 0:00:00]} 3. Nf3 {[%emt 0:02:24]} Nf6 {[%emt 0:00:00]} 4. Nc3 {[%emt 0:00:36]} e6 {[%emt 0:00:24]} 5. Bg5 {[%emt 0:01:48]} h6 {[%emt 0:00:36]} 6. Bxf6 {[%emt 0:02:28]} Qxf6 {[%emt 0:00:44]} 7. e3 {[%emt 0:06:49]} Bd6 {[%emt 0:02:29]} 8. Bd3 {[%emt 0:05:05]} Nd7 {[%emt 0:04:28]} 9. O-O {[%emt 0:01:09]} Qe7 {[%emt 0:10:41]} 10. cxd5 {[%emt 0:05:13]} cxd5 {[%emt 0:09:50]} 11. e4 {[%emt 0:05:28]} dxe4 {[%emt 0:03:58]} 12. Nxe4 {[%emt 0:02:24]} O-O {[%emt 0:02:30]} 13. Re1 {[%emt 0:02:14]} Bb4 {[%emt 0:04:02]} 14. Re2 {[%emt 0:02:34]} Nf6 {[%emt 0:01:03]} 15. a3 {[%emt 0:04:04]} Ba5 {[%emt 0:02:53]} 16. Nxf6+ {[%emt 0:08:44]} Qxf6 {[%emt 0:00:24]} 17. Bc2 {[%emt 0:01:25]} Rd8 {[%emt 0:02:37]} 18. Qd3 {[%emt 0:00:50]} g6 {[%emt 0:01:37]} 19. Re4 {[%emt 0:11:53]} Bd7 {[%emt 0:03:52]} 20. Qe3 {[%emt 0:01:32]} Rac8 {[%emt 0:11:40]} 21. Bd3 {[%emt 0:02:19]} Bc6 {[%emt 0:04:58]} 22. Rf4 {[%emt 0:00:59]} Qg7 {[%emt 0:00:32]} 23. Ne5 {[%emt 0:02:23]} Be8 {[%emt 0:02:07]} 24. h4 {[%emt 0:12:46]} Bb6 {[%emt 0:08:01]} 25. Rd1 {[%emt 0:03:09]} Bc7 {[%emt 0:08:53]} 26. Rf3 {[%emt 0:04:29]} Bxe5 {[%emt 0:05:14]} 27. dxe5 {[%emt 0:00:07]} Bb5 {[%emt 0:02:57]} 28. Bc2 {[%emt 0:00:44]} Rxd1+ {[%emt 0:01:53]} 29. Bxd1 {[%emt 0:00:04]} Rd8 {[%emt 0:03:06]} 30. Bc2 {[%emt 0:00:16]} Bc6 {[%emt 0:02:02]} 31. Rf6 {[%emt 0:00:12]} h5 {[%emt 0:00:56]} 32. Qg5 {[%emt 0:00:31]} Kf8 {[%emt 0:01:01]} 33. Bxg6 {[%emt 0:03:46]} Be8 {[%emt 0:00:28]} 34. Qxh5 {[%emt 0:02:24]} Ke7 {[%emt 0:00:13]} 35. Qg5 {[%emt 0:01:21]} Kd7 {[%emt 0:00:45]} 36. Bxf7 {[%emt 0:02:08] normal} 1-0

[Event "DVM U20 2019"]
[Site "Braunschweig"]
[Date "2019.12.27"]
[Round "1"]
[White "Kartsev, Nikolay"]
[Black "Wu, Leon"]
[Result "1/2-1/2"]
[ECO "C77"]
[WhiteElo "2092"]
[BlackElo "2019"]
[Annotator "NA RC"]
[PlyCount "40"]
[EventDate "2019.12.27"]
[EventType "team-tourn"]
[EventRounds "7"]
[EventCountry "GER"]
[SourceTitle "playchess.com"]
[Source "ChessBase"]
[SourceQuality "1"]
[WhiteTeam "SF Brackel"]
[BlackTeam "OSG Baden-Baden"]
[TimeControl "40/5400+30:1800+30"]

1. e4 {[%emt 0:00:00]} e5 {[%emt 0:00:00]} 2. Nf3 {[%emt 0:00:51]} Nc6 {[%emt 0:00:21]} 3. Bb5 {[%emt 0:00:17]} a6 {[%emt 0:00:05]} 4. Ba4 {[%emt 0:00:03]} Nf6 {[%emt 0:00:27]} 5. d3 {[%emt 0:00:08]} b5 {[%emt 0:00:27]} 6. Bb3 {[%emt 0:00:06]} Bc5 {[%emt 0:00:08]} 7. c3 {[%emt 0:01:04]} d6 {[%emt 0:00:33] unterminated} 8. O-O {[%emt 0:01:00]} h6 {[%emt 0:00:56] unterminated} 9. d4 {[%emt 0:09:53] unterminated} Bb6 {[%emt 0:04:39] unterminated} 10. dxe5 {[%emt 0:04:29]} Nxe5 {[%emt 0:01:05] unterminated} 11. Nxe5 {[%emt 0:04:57]} dxe5 {[%emt 0:00:10] unterminated} 12. Qxd8+ {[%emt 0:09:16]} Kxd8 {[%emt 0:00:07]} 13. Nd2 {[%emt 0:02:19]} Be6 {[%emt 0:15:02]} 14. Bxe6 {[%emt 0:04:41]} fxe6 {[%emt 0:00:12]} 15. Nf3 {[%emt 0:03:37]} Nd7 {[%emt 0:02:02]} 16. Be3 {[%emt 0:07:20]} Bxe3 {[%emt 0:01:48]} 17. fxe3 {[%emt 0:00:50]} g5 {[%emt 0:00:31]} 18. Rad1 {[%emt 0:07:03]} Ke7 {[%emt 0:01:42]} 19. Rf2 {[%emt 0:05:20] normal} Rhg8 {[%emt 0:01:58] normal} 20. Rfd2 $11 {[%emt 0:05:11]} Rad8 {[%emt 0:02:59] normal} 1/2-1/2

[Event "DVM U20 2019"]
[Site "Braunschweig"]
[Date "2019.12.27"]
[Round "1"]
[White "Engel, Robert"]
[Black "Verfürth, Kevin"]
[Result "1/2-1/2"]
[ECO "B54"]
[WhiteElo "2075"]
[BlackElo "2038"]
[Annotator "NA RC"]
[PlyCount "65"]
[EventDate "2019.12.27"]
[EventType "team-tourn"]
[EventRounds "7"]
[EventCountry "GER"]
[SourceTitle "playchess.com"]
[Source "ChessBase"]
[SourceQuality "1"]
[WhiteTeam "Hamburger SK"]
[BlackTeam "SK Turm Kleve"]
[TimeControl "40/5400+30:1800+30"]

1. e4 c5 2. Nf3 d6 {[%emt 0:00:00]} 3. d4 {[%emt 0:00:00]} cxd4 {[%emt 0:00:00]} 4. Nxd4 {[%emt 0:00:00]} Nf6 {[%emt 0:00:10]} 5. f3 {[%emt 0:00:00]} g6 {[%emt 0:00:39]} 6. c4 {[%emt 0:00:00]} Bg7 {[%emt 0:00:04]} 7. Nc3 {[%emt 0:00:05]} Nc6 {[%emt 0:00:24]} 8. Be3 {[%emt 0:00:20]} O-O {[%emt 0:00:31]} 9. Qd2 {[%emt 0:00:05]} Nxd4 {[%emt 0:01:13]} 10. Bxd4 {[%emt 0:00:06]} Nd7 {[%emt 0:01:43]} 11. Be3 {[%emt 0:02:55]} Ne5 {[%emt 0:15:32]} 12. Rc1 {[%emt 0:08:23]} Be6 {[%emt 0:06:03]} 13. b3 {[%emt 0:00:32]} Qd7 {[%emt 0:14:17]} 14. Be2 {[%emt 0:02:23]} f5 {[%emt 0:17:10]} 15. O-O {[%emt 0:06:41]} fxe4 {[%emt 0:04:18]} 16. Nxe4 {[%emt 0:00:41]} Bf5 {[%emt 0:01:10]} 17. Nc3 {[%emt 0:05:31]} b6 {[%emt 0:05:59]} 18. Nb5 {[%emt 0:05:04]} Rac8 {[%emt 0:04:55]} 19. a4 {[%emt 0:02:13]} Nc6 {[%emt 0:02:08]} 20. Bd3 {[%emt 0:05:24]} Bxd3 {[%emt 0:02:30]} 21. Qxd3 {[%emt 0:00:06]} Qf5 22. Rfd1 {[%emt 0:09:32]} Qxd3 {[%emt 0:04:24]} 23. Rxd3 {[%emt 0:00:06]} Be5 {[%emt 0:00:43]} 24. Nd4 {[%emt 0:17:26]} Nxd4 {[%emt 0:01:29]} 25. Bxd4 {[%emt 0:00:05]} Bxd4+ {[%emt 0:00:05]} 26. Rxd4 {[%emt 0:00:05]} Rf5 {[%emt 0:04:08]} 27. Re1 {[%emt 0:00:49]} Kf7 {[%emt 0:00:29]} 28. Kf2 {[%emt 0:03:57]} Rc7 {[%emt 0:04:12]} 29. g4 {[%emt 0:00:40]} Rf6 {[%emt 0:00:38]} 30. Kg3 {[%emt 0:07:03]} e5 {[%emt 0:02:44]} 31. Rd5 {[%emt 0:02:15]} Rc5 {[%emt 0:00:24]} 32. Red1 {[%emt 0:07:13]} Rxd5 {[%emt 0:00:51]} 33. Rxd5 {[%emt 0:00:53] normal} 1/2-1/2

[Event "DVM U20 2019"]
[Site "Braunschweig"]
[Date "2019.12.27"]
[Round "1"]
[White "Dechant, Georg"]
[Black "Grimm, Ling Leander"]
[Result "1-0"]
[ECO "B34"]
[WhiteElo "2065"]
[BlackElo "1777"]
[Annotator "NA RC"]
[PlyCount "87"]
[EventDate "2019.12.27"]
[EventType "team-tourn"]
[EventRounds "7"]
[EventCountry "GER"]
[SourceTitle "playchess.com"]
[Source "ChessBase"]
[SourceQuality "1"]
[WhiteTeam "SC Bavaria Regensburg"]
[BlackTeam "SK Bebenhausen"]
[TimeControl "40/5400+30:1800+30"]

1. e4 {[%emt 0:00:00]} c5 {[%emt 0:00:00]} 2. Nf3 {[%emt 0:00:00]} Nc6 {[%emt 0:00:01]} 3. d4 {[%emt 0:00:00]} cxd4 {[%emt 0:00:11]} 4. Nxd4 {[%emt 0:00:00]} g6 {[%emt 0:00:17]} 5. Nc3 {[%emt 0:00:00]} Bg7 {[%emt 0:00:11]} 6. Be3 {[%emt 0:00:00]} Nf6 {[%emt 0:00:20]} 7. Nxc6 {[%emt 0:00:03]} bxc6 {[%emt 0:00:14]} 8. e5 {[%emt 0:00:04]} Ng8 {[%emt 0:00:17]} 9. f4 {[%emt 0:00:05]} Nh6 {[%emt 0:00:34] unterminated} 10. Qf3 {[%emt 0:08:12] unterminated B34: Sicilian: Accelerated Dragon with 5 Nc3: sidelines} (10. Qd2 d5 11. Bc5 O-O 12. Bd3 f6 13. O-O fxe5 14. fxe5 Nf7 15. Rae1 Nxe5 16. Rxf8+ Qxf8 17. Kh1 Qf6 18. Rf1 {½-½ (29) Abasov,N (2575)-Zvjaginsev,V (2661) Minsk 2017}) 10... O-O {[%emt 0:10:08]} 11. O-O-O {[%emt 0:02:48] unterminated} Qa5 {[%emt 0:16:50] unterminated} 12. a3 $146 {[%emt 0:14:12]} (12. Rd4 $11) ({Predecessor:} 12. h3 Rb8 13. g4 f6 14. Bc4+ Kh8 15. exf6 Bxf6 16. a3 Rxb2 17. Bd4 Qxa3 18. Bxf6+ exf6 {0-1 (26) Eldesoky,H (2307)-Zayan,O (2206) Mahalla 2014}) 12... Rb8 {[%emt 0:07:16]} 13. Rd4 {[%emt 0:00:45]} Qb6 {[%emt 0:14:56]} 14. Rb4 {[%emt 0:03:39]} Qc7 {[%emt 0:00:17]} 15. Rxb8 {[%emt 0:05:10]} Qxb8 {[%emt 0:00:26]} 16. h3 {[%emt 0:02:51]} Nf5 {[%emt 0:08:24]} 17. Bf2 {[%emt 0:00:24]} d6 {[%emt 0:00:53]} 18. g4 {[%emt 0:00:23]} Nh6 {[%emt 0:03:22] unterminated} 19. exd6 {[%emt 0:02:40]} Qxd6 {[%emt 0:02:39]} 20. Bc4 {[%emt 0:01:26] unterminated} Qc7 {[%emt 0:11:11]} 21. Re1 {[%emt 0:03:48] unterminated} Rd8 {[%emt 0:05:12] unterminated} 22. Bc5 {[%emt 0:05:39]} Rd7 {[%emt 0:02:03] unterminated} 23. Qe3 {[%emt 0:08:05] unterminated} e6 {[%emt 0:08:10]} 24. f5 {[%emt 0:01:14] unterminated} gxf5 {[%emt 0:00:55] [#] unterminated} 25. g5 $1 {[%emt 0:13:12]} f4 {[%emt 0:00:52]} 26. Qf3 {[%emt 0:00:11]} Nf5 {[%emt 0:00:50]} 27. Ne4 {[%emt 0:00:28]} Qd8 {[%emt 0:03:19] unterminated} 28. Qxf4 {[%emt 0:01:10]} a5 {[%emt 0:01:43]} 29. Qg4 {[%emt 0:02:08]} Kh8 {[%emt 0:00:35]} 30. Qh5 {[%emt 0:02:55]} Rb7 {[%emt 0:01:14]} 31. c3 {[%emt 0:00:08]} Rd7 {[%emt 0:00:32]} 32. Rg1 {[%emt 0:01:18]} Qc7 {[%emt 0:00:38]} 33. Qg4 {[%emt 0:04:18]} Qe5 {[%emt 0:00:39]} 34. h4 {[%emt 0:00:35]} Ne7 {[%emt 0:00:51]} 35. Rf1 {[%emt 0:00:59] unterminated} Nf5 {[%emt 0:00:36]} 36. Bg1 {[%emt 0:04:53]} Qc7 {[%emt 0:00:47] unterminated} 37. Nf6 {[%emt 0:02:47]} Rd8 {[%emt 0:00:33] unterminated} 38. Ne4 {[%emt 0:06:25] unterminated} Qe7 {[%emt 0:00:31] unterminated} 39. Bb6 {[%emt 0:01:21]} Rg8 {[%emt 0:00:14] unterminated} 40. Qh5 {[%emt 0:04:24] unterminated} a4 $2 {[%emt 0:00:18]} (40... Be5 41. Kb1 (41. Bxa5 Qa7 $15) 41... c5) 41. Bd3 {[%emt 0:31:07] unterminated} Qd7 {[%emt 0:05:22] unterminated} 42. Bc2 {[%emt 0:00:00]} Ba6 {[%emt 0:00:47] unterminated} 43. Rd1 {[%emt 0:00:00] unterminated} Qe7 {[%emt 0:02:33]} 44. Bc5 $18 {[%emt 0:00:00] normal} 1-0

[Event "DVM U20 2019"]
[Site "Braunschweig"]
[Date "2019.12.27"]
[Round "1"]
[White "Elier, Ali"]
[Black "Martin, Richard"]
[Result "1/2-1/2"]
[ECO "B21"]
[WhiteElo "2032"]
[BlackElo "1930"]
[Annotator "NA RC"]
[PlyCount "47"]
[EventDate "2019.12.27"]
[EventType "team-tourn"]
[EventRounds "7"]
[EventCountry "GER"]
[SourceTitle "playchess.com"]
[Source "ChessBase"]
[SourceQuality "1"]
[WhiteTeam "SF Brackel"]
[BlackTeam "OSG Baden-Baden"]
[TimeControl "40/5400+30:1800+30"]

1. e4 {[%emt 0:00:00]} c5 {[%emt 0:00:00]} 2. d4 {[%emt 0:00:00]} cxd4 {[%emt 0:00:00]} 3. c3 {[%emt 0:00:05]} dxc3 {[%emt 0:00:05]} 4. Nxc3 {[%emt 0:00:06]} Nc6 {[%emt 0:00:07]} 5. Nf3 {[%emt 0:00:03]} d6 {[%emt 0:00:12]} 6. Bc4 {[%emt 0:00:05]} a6 {[%emt 0:00:08]} 7. O-O {[%emt 0:00:05]} Nf6 {[%emt 0:00:04]} 8. Bf4 {[%emt 0:01:31] B21: Sicilian: 2 f4 and Morra Gambit} (8. h3 e6 9. Qe2 b5 10. Bb3 Bb7 11. Rd1 Qb8 12. Bf4 Nd7 13. Rd2 Be7 14. Bxd6 Bxd6 15. Rad1 Bf4 16. Rxd7 {0-1 (49) Mosadeghpour,M (2475)-Grigoryan,K (2602) Mashhad 2016}) 8... Bg4 {[%emt 0:00:10]} 9. h3 {[%emt 0:00:19]} Bxf3 {[%emt 0:00:09]} 10. Qxf3 {[%emt 0:00:04]} e6 {[%emt 0:00:11]} 11. Rfd1 {[%emt 0:00:36]} Qb8 {[%emt 0:00:11]} 12. Rac1 {[%emt 0:06:03]} Be7 {[%emt 0:00:34]} 13. Qg3 {[%emt 0:04:38]} Nh5 {[%emt 0:00:07]} 14. Bxd6 {[%emt 0:00:19]} Nxg3 {[%emt 0:00:04]} 15. Bxb8 {[%emt 0:00:08]} Rxb8 $146 {[%emt 0:00:02]} ({Predecessor:} 15... Nxe4) 16. fxg3 {[%emt 0:00:07]} Bf6 {[%emt 0:00:44] unterminated} 17. Ne2 {[%emt 0:14:33] unterminated} O-O {[%emt 0:04:58] unterminated} 18. b3 {[%emt 0:05:11]} Ne5 {[%emt 0:02:40] unterminated} 19. Nf4 {[%emt 0:02:29]} Rfd8 {[%emt 0:01:26] unterminated} 20. Be2 $15 {[%emt 0:02:07]} Kf8 {[%emt 0:06:44]} 21. Kf1 {[%emt 0:02:40]} Rbc8 {[%emt 0:02:19] normal} 22. Rxd8+ {[%emt 0:11:36]} Rxd8 {[%emt 0:00:25] normal} 23. Rc7 {[%emt 0:01:19] normal} Rd7 {[%emt 0:00:06]} 24. Rxd7 {[%emt 0:00:27] normal} 1/2-1/2

[Event "DVM U20 2019"]
[Site "Braunschweig"]
[Date "2019.12.27"]
[Round "1"]
[White "Tiedemann, Fin Niklas"]
[Black "Biastoch, Bennet"]
[Result "1/2-1/2"]
[ECO "B24"]
[WhiteElo "1936"]
[BlackElo "2242"]
[Annotator "NA"]
[PlyCount "82"]
[EventDate "2019.12.27"]
[EventType "team-tourn"]
[EventRounds "7"]
[EventCountry "GER"]
[SourceTitle "playchess.com"]
[Source "ChessBase"]
[SourceQuality "1"]
[WhiteTeam "Lübecker SV"]
[BlackTeam "SG Aufbau Elbe Magdeburg"]
[TimeControl "40/5400+30:1800+30"]

1. e4 {[%emt 0:00:00]} c5 {[%emt 0:00:00]} 2. Nc3 {[%emt 0:00:00]} Nc6 {[%emt 0:00:00]} 3. g3 {[%emt 0:00:03]} g6 {[%emt 0:00:41]} 4. Bg2 {[%emt 0:00:08]} Bg7 {[%emt 0:00:24]} 5. d3 {[%emt 0:00:10]} e6 {[%emt 0:00:39]} 6. f4 {[%emt 0:00:13]} Nge7 {[%emt 0:00:52]} 7. Nf3 {[%emt 0:07:15]} d6 {[%emt 0:00:53]} 8. O-O {[%emt 0:00:24]} O-O {[%emt 0:00:12]} 9. Ne2 {[%emt 0:02:56] unterminated} b6 {[%emt 0:03:51] unterminated} 10. c3 {[%emt 0:01:03]} Ba6 {[%emt 0:02:29] unterminated} 11. Be3 {[%emt 0:02:59] unterminated B25: Closed Sicilian: 3 g3, lines without early Be3} (11. Rb1 Qd7 12. b4 Nd8 13. Be3 Rc8 14. a4 f5 15. b5 Bb7 16. Nd2 Nf7 17. Qb3 fxe4 18. dxe4 d5 {½-½ (55) Cori Tello,J (2549)-Hamitevici,V (2467) Tromsoe 2014}) 11... Rc8 {[%emt 0:06:33] unterminated} 12. Bf2 {[%emt 0:09:55] unterminated} Qd7 {[%emt 0:11:23] unterminated} 13. Re1 {[%emt 0:04:40] unterminated} Rfd8 $146 {[%emt 0:03:35] unterminated} ({Predecessor:} 13... e5 14. f5 gxf5 15. Bh3 d5 16. Qc2 dxe4 17. dxe4 Qd3 18. Qxd3 Bxd3 19. exf5 Bxf5 20. Bxf5 Nxf5 {0-1 (53) Trnovec,M-Bezold,M (2345) Cattolica 1992}) 14. Rc1 {[%emt 0:05:28] unterminated} h6 {[%emt 0:19:21] unterminated} 15. h3 {[%emt 0:07:40] unterminated} e5 {[%emt 0:03:37]} 16. g4 {[%emt 0:09:28]} d5 {[%emt 0:03:59]} 17. exd5 {[%emt 0:19:14]} Nxd5 {[%emt 0:00:29]} 18. fxe5 {[%emt 0:00:49]} Nxe5 {[%emt 0:00:50]} 19. Nxe5 {[%emt 0:00:36]} Bxe5 {[%emt 0:00:07]} 20. d4 {[%emt 0:00:32] unterminated} Nf4 {[%emt 0:12:30]} 21. Nxf4 {[%emt 0:03:18]} Bxf4 {[%emt 0:00:09] unterminated} 22. Rc2 {[%emt 0:05:29] unterminated} Bb8 {[%emt 0:02:54] unterminated} 23. d5 $15 {[%emt 0:03:44]} Qd6 {[%emt 0:14:13]} 24. c4 {[%emt 0:00:12]} b5 {[%emt 0:00:08]} 25. b3 {[%emt 0:00:24]} bxc4 {[%emt 0:00:15]} 26. bxc4 {[%emt 0:00:08]} Re8 {[%emt 0:00:37]} 27. Qc1 {[%emt 0:08:31]} Rxe1+ {[%emt 0:06:29]} 28. Qxe1 {[%emt 0:00:41]} Qf4 {[%emt 0:03:32]} 29. Qe3 {[%emt 0:03:26]} Qxe3 {[%emt 0:02:04]} 30. Bxe3 {[%emt 0:00:05]} Kg7 {[%emt 0:00:13]} 31. Kf2 {[%emt 0:01:40]} Bd6 {[%emt 0:00:09]} 32. Bf1 {[%emt 0:01:48]} Rb8 {[%emt 0:00:08]} 33. Bd3 {[%emt 0:00:57]} Rb1 {[%emt 0:00:53]} 34. Bf1 {[%emt 0:02:10]} f5 {[%emt 0:00:20]} 35. gxf5 {[%emt 0:00:38]} gxf5 {[%emt 0:00:02]} 36. Bd3 {[%emt 0:00:17]} Bc8 {[%emt 0:01:27]} 37. Kg2 {[%emt 0:00:34]} Rb7 {[%emt 0:01:19]} 38. Rf2 {[%emt 0:00:22]} Kg6 {[%emt 0:00:43]} 39. Re2 {[%emt 0:00:53]} Re7 {[%emt 0:00:35]} 40. Bf2 {[%emt 0:00:34]} Rxe2 {[%emt 0:00:36]} 41. Bxe2 {[%emt 0:30:08]} Kg5 {[%emt 0:09:56] normal} 1/2-1/2

[Event "DVM U20 2019"]
[Site "Braunschweig"]
[Date "2019.12.27"]
[Round "1"]
[White "Jurga, Jonas Vincent"]
[Black "Garbuz, Vitaliy"]
[Result "0-1"]
[ECO "B38"]
[WhiteElo "1896"]
[BlackElo "2064"]
[Annotator "NA RC"]
[PlyCount "58"]
[EventDate "2019.12.27"]
[EventType "team-tourn"]
[EventRounds "7"]
[EventCountry "GER"]
[SourceTitle "playchess.com"]
[Source "ChessBase"]
[SourceQuality "1"]
[WhiteTeam "OSG Baden-Baden"]
[BlackTeam "SF Brackel"]
[TimeControl "40/5400+30:1800+30"]

1. e4 {[%emt 0:00:14]} c5 {[%emt 0:00:00]} 2. Nf3 {[%emt 0:00:25]} Nc6 {[%emt 0:00:12]} 3. d4 {[%emt 0:00:06]} cxd4 {[%emt 0:00:05]} 4. Nxd4 {[%emt 0:00:06]} g6 {[%emt 0:00:10]} 5. c4 {[%emt 0:00:06]} Bg7 {[%emt 0:00:04]} 6. Be3 {[%emt 0:00:04]} Nf6 {[%emt 0:03:42]} 7. Nc3 {[%emt 0:00:10]} O-O {[%emt 0:00:52]} 8. Be2 {[%emt 0:00:06]} d6 {[%emt 0:00:38]} 9. O-O {[%emt 0:00:15]} Bd7 {[%emt 0:00:24]} 10. h3 {[%emt 0:09:29]} Nxd4 {[%emt 0:09:14]} 11. Bxd4 {[%emt 0:00:15]} Bc6 {[%emt 0:01:49]} 12. Qc2 {[%emt 0:00:30] B38: Sicilian: Maroczy Bind with 5...Bg7 and 7...0-0} a5 {[%emt 0:01:30]} 13. Rad1 {[%emt 0:00:49]} Nd7 {[%emt 0:01:02]} 14. Bxg7 {[%emt 0:00:12]} Kxg7 {[%emt 0:00:08] unterminated} 15. Bg4 {[%emt 0:01:16] unterminated} Nc5 {[%emt 0:14:34] unterminated} 16. e5 {[%emt 0:06:56]} f5 {[%emt 0:01:05]} 17. Be2 {[%emt 0:01:44] unterminated} f4 {[%emt 0:03:37]} 18. f3 $146 {[%emt 0:01:38]} ({Predecessor:} 18. exd6 f3 19. Bxf3 Bxf3 20. gxf3 exd6 {½-½ (58) Moroni,L (2448)-Mamedov,R (2689) Minsk 2017}) 18... Qb6 {[%emt 0:01:46] unterminated} 19. exd6 {[%emt 0:00:37] unterminated} Ne4+ {[%emt 0:10:21]} 20. Kh2 {[%emt 0:00:11]} Nxd6 {[%emt 0:00:44] unterminated} 21. Bd3 {[%emt 0:04:27]} Qc5 {[%emt 0:03:17] unterminated} 22. Qe2 {[%emt 0:03:49] unterminated} Rae8 $14 {[%emt 0:07:16]} 23. b3 {[%emt 0:14:13]} Qb4 {[%emt 0:05:38]} 24. Qe5+ {[%emt 0:01:06]} Kg8 {[%emt 0:04:22]} 25. Ne2 {[%emt 0:03:08]} a4 {[%emt 0:05:28]} 26. Nxf4 {[%emt 0:03:56]} axb3 {[%emt 0:02:03]} 27. Ne6 {[%emt 0:03:28]} Rf6 {[%emt 0:00:34]} 28. axb3 {[%emt 0:01:36]} Nf7 {[%emt 0:00:34]} 29. Qe2 {[%emt 0:00:52]} Qd6+ {[%emt 0:00:39] normal} 0-1